[Event "European Online Club-ch-E 2021"]
[Site "Online"]
[Date "2021.03.27"]
[Round "9.16"]
[White "Cornette, Matthieu"]
[Black "Koutlas, Nikolaos"]
[Result "1/2-1/2"]
[ECO "B30"]
[WhiteElo "2555"]
[BlackElo "2078"]
[Annotator "ChessBase"]
[PlyCount "87"]
[EventDate "2021.03.27"]
[EventType "team-tourn"]
[EventCountry "NET"]
[SourceTitle "playchess.com"]
[Source "ChessBase"]
[SourceQuality "1"]
[TimeControl "900+5"]

1. e4 {[%emt 0:00:00]} c5 {[%emt 0:00:02]} 2. Nc3 {[%emt 0:00:02]} Nc6 {[%emt 0:00:03]} 3. Bb5 {[%emt 0:00:03]} Nd4 {[%emt 0:00:05]} 4. Nf3 {[%emt 0:00:01]} e6 {[%emt 0:00:05]} 5. O-O {[%emt 0:00:03]} a6 {[%emt 0:00:03]} 6. Bd3 {[%emt 0:00:02]} Nc6 {[%emt 0:00:05]} 7. b3 {[%emt 0:00:05]} d5 {[%emt 0:00:13]} 8. exd5 {[%emt 0:00:30]} exd5 {[%emt 0:00:02]} 9. Re1+ {[%emt 0:00:11]} Be7 {[%emt 0:00:04]} 10. Na4 {[%emt 0:00:54]} Be6 {[%emt 0:02:34]} 11. Bb2 {[%emt 0:00:21]} d4 {[%emt 0:00:09]} 12. Be4 {[%emt 0:00:26]} Rc8 {[%emt 0:00:25]} 13. Ba3 {[%emt 0:02:05]} Qa5 {[%emt 0:01:10]} 14. c3 {[%emt 0:00:46]} dxc3 {[%emt 0:01:58]} 15. dxc3 {[%emt 0:00:17]} b5 {[%emt 0:00:51]} 16. Nxc5 {[%emt 0:01:36]} Qxa3 {[%emt 0:00:07]} 17. Nxe6 {[%emt 0:00:07]} fxe6 {[%emt 0:00:06]} 18. Bxc6+ {[%emt 0:00:07]} Rxc6 {[%emt 0:00:00]} 19. Nd4 {[%emt 0:00:02]} Rd6 {[%emt 0:00:54]} 20. Qf3 {[%emt 0:01:22]} Nf6 {[%emt 0:01:48]} 21. Nxe6 {[%emt 0:00:04]} Rxe6 {[%emt 0:00:05]} 22. Rxe6 {[%emt 0:00:23]} O-O {[%emt 0:01:16]} 23. Rae1 {[%emt 0:00:49]} Bc5 {[%emt 0:00:20]} 24. b4 {[%emt 0:00:05]} Ne4 {[%emt 0:00:29]} 25. Qxe4 {[%emt 0:00:56]} Bxf2+ {[%emt 0:00:04]} 26. Kh1 {[%emt 0:00:10]} Bxe1 {[%emt 0:00:02]} 27. Re8 {[%emt 0:02:12]} Qxa2 {[%emt 0:00:05]} 28. Qxe1 {[%emt 0:00:03]} Qf7 {[%emt 0:00:15]} 29. Rxf8+ {[%emt 0:00:02]} Kxf8 {[%emt 0:00:00]} 30. h3 {[%emt 0:00:06]} Qf6 {[%emt 0:00:16]} 31. Qe3 {[%emt 0:00:19]} g5 {[%emt 0:00:45]} 32. g4 {[%emt 0:00:14]} h6 {[%emt 0:00:29]} 33. Kg2 {[%emt 0:00:03]} Kf7 {[%emt 0:00:34]} 34. Kg3 {[%emt 0:00:22]} Qd6+ {[%emt 0:00:12]} 35. Kf3 {[%emt 0:00:04]} Qd5+ {[%emt 0:00:23]} 36. Kf2 {[%emt 0:00:21]} Qe6 {[%emt 0:00:37]} 37. Qc5 {[%emt 0:00:15]} Qf6+ {[%emt 0:00:16]} 38. Ke2 {[%emt 0:00:37]} Qe7+ {[%emt 0:00:09]} 39. Qxe7+ {[%emt 0:00:04]} Kxe7 {[%emt 0:00:00]} 40. Ke3 {[%emt 0:00:03]} Kd7 {[%emt 0:00:07]} 41. Kd3 {[%emt 0:00:07]} Ke7 {[%emt 0:00:10]} 42. Ke3 {[%emt 0:01:14]} Kd7 {[%emt 0:00:06]} 43. Kd3 {[%emt 0:00:04]} Ke7 {[%emt 0:00:03]} 44. Ke3 {[%emt 0:00:04]} 1/2-1/2

[Event "European Online Club-ch-E 2021"]
[Site "Online"]
[Date "2021.03.27"]
[Round "9.17"]
[White "Caglar, Sila"]
[Black "Guseinov, Gadir"]
[Result "1/2-1/2"]
[ECO "B36"]
[WhiteElo "2250"]
[BlackElo "2665"]
[Annotator "ChessBase"]
[PlyCount "71"]
[EventDate "2021.03.27"]
[EventType "team-tourn"]
[EventCountry "NET"]
[SourceTitle "playchess.com"]
[Source "ChessBase"]
[SourceQuality "1"]
[TimeControl "900+5"]

1. e4 {[%emt 0:00:00]} c5 {[%emt 0:00:04]} 2. Nf3 {[%emt 0:00:03]} g6 {[%emt 0:00:01]} 3. d4 {[%emt 0:00:08]} cxd4 {[%emt 0:00:02]} 4. Nxd4 {[%emt 0:00:02]} Nc6 {[%emt 0:00:02]} 5. c4 {[%emt 0:00:04]} Nf6 {[%emt 0:00:02]} 6. Nc3 {[%emt 0:00:02]} Nxd4 {[%emt 0:00:02]} 7. Qxd4 {[%emt 0:00:02]} d6 {[%emt 0:00:01]} 8. Be3 {[%emt 0:00:07]} Bg7 {[%emt 0:00:01]} 9. f3 {[%emt 0:00:01]} O-O {[%emt 0:00:02]} 10. Qd2 {[%emt 0:00:02]} Be6 {[%emt 0:00:01]} 11. Be2 {[%emt 0:00:02]} Rc8 {[%emt 0:00:02]} 12. Nd5 {[%emt 0:00:14]} Nxd5 {[%emt 0:00:28]} 13. exd5 {[%emt 0:00:13]} Bd7 {[%emt 0:00:02]} 14. O-O {[%emt 0:00:02]} e6 {[%emt 0:00:16]} 15. dxe6 {[%emt 0:01:12]} Bxe6 {[%emt 0:00:03]} 16. Rac1 {[%emt 0:00:06]} d5 {[%emt 0:00:15]} 17. cxd5 {[%emt 0:00:14]} Qxd5 {[%emt 0:00:02]} 18. Qxd5 {[%emt 0:00:09]} Bxd5 {[%emt 0:00:01]} 19. b3 {[%emt 0:00:27]} a6 {[%emt 0:00:02]} 20. Rxc8 {[%emt 0:00:23]} Rxc8 {[%emt 0:00:02]} 21. Rc1 {[%emt 0:00:02]} Rxc1+ {[%emt 0:00:31]} 22. Bxc1 {[%emt 0:00:02]} Bd4+ {[%emt 0:00:01]} 23. Kf1 {[%emt 0:00:03]} b5 {[%emt 0:00:20]} 24. Bd3 {[%emt 0:00:11]} f5 {[%emt 0:00:02]} 25. Ke2 {[%emt 0:00:03]} Kf7 {[%emt 0:00:06]} 26. Be3 {[%emt 0:00:07]} Bf6 {[%emt 0:00:01]} 27. a4 {[%emt 0:00:38]} b4 {[%emt 0:00:23]} 28. Bxa6 {[%emt 0:00:57]} Bxb3 {[%emt 0:00:02]} 29. Bc5 {[%emt 0:00:14]} Bxa4 {[%emt 0:01:51]} 30. Bxb4 {[%emt 0:00:03]} Bb3 {[%emt 0:00:12]} 31. Kd3 {[%emt 0:00:38]} Be5 {[%emt 0:00:04]} 32. h3 {[%emt 0:00:12]} Kf6 {[%emt 0:00:07]} 33. Ke3 {[%emt 0:00:18]} g5 {[%emt 0:00:18]} 34. g4 {[%emt 0:00:28]} f4+ {[%emt 0:00:38]} 35. Ke2 {[%emt 0:00:10]} Bd5 {[%emt 0:00:11]} 36. Be1 {[%emt 0:00:20]} 1/2-1/2

[Event "European Online Club-ch-E 2021"]
[Site "Online"]
[Date "2021.03.27"]
[Round "9.18"]
[White "Abasov, Nijat"]
[Black "Kocyigit, Buse Naz"]
[Result "1-0"]
[ECO "B06"]
[WhiteElo "2664"]
[BlackElo "2143"]
[Annotator "ChessBase"]
[PlyCount "47"]
[EventDate "2021.03.27"]
[EventType "team-tourn"]
[EventCountry "NET"]
[SourceTitle "playchess.com"]
[Source "ChessBase"]
[SourceQuality "1"]
[TimeControl "900+5"]

1. e4 {[%emt 0:00:00]} c5 {[%emt 0:00:05]} 2. c3 {[%emt 0:00:02]} d5 {[%emt 0:00:02]} 3. exd5 {[%emt 0:00:00]} Qxd5 {[%emt 0:00:02]} 4. Nf3 {[%emt 0:00:00]} g6 {[%emt 0:00:02]} 5. Na3 {[%emt 0:00:07]} Bg7 {[%emt 0:00:39]} 6. d4 {[%emt 0:00:14]} cxd4 {[%emt 0:00:33]} 7. Bc4 {[%emt 0:00:01]} Qe4+ {[%emt 0:01:01]} 8. Be3 {[%emt 0:00:01]} Nh6 {[%emt 0:00:40]} 9. Nb5 {[%emt 0:00:13]} O-O {[%emt 0:01:10]} 10. cxd4 {[%emt 0:00:03]} Nc6 {[%emt 0:00:32]} 11. Nc3 {[%emt 0:00:26]} Qf5 {[%emt 0:03:20]} 12. h3 {[%emt 0:00:50]} Qa5 {[%emt 0:00:20]} 13. g4 {[%emt 0:02:57]} Rd8 {[%emt 0:02:01]} 14. Qd2 {[%emt 0:00:18]} Nxg4 {[%emt 0:01:03]} 15. hxg4 {[%emt 0:00:00]} Bxg4 {[%emt 0:00:02]} 16. Ng5 {[%emt 0:00:52]} Nxd4 {[%emt 0:01:52]} 17. Bxf7+ {[%emt 0:00:21]} Kf8 {[%emt 0:00:09]} 18. Bxd4 {[%emt 0:00:00]} Rxd4 {[%emt 0:01:11]} 19. Qe3 {[%emt 0:00:02]} Rad8 {[%emt 0:01:12]} 20. Kf1 {[%emt 0:00:39]} e5 {[%emt 0:00:38]} 21. Bb3 {[%emt 0:00:42]} Qa6+ {[%emt 0:00:05]} 22. Kg1 {[%emt 0:00:04]} Rf4 {[%emt 0:00:06]} 23. Nd5 {[%emt 0:00:13]} Qc6 {[%emt 0:00:05]} 24. Nxf4 {[%emt 0:00:09]} 1-0

[Event "European Online Club-ch-E 2021"]
[Site "Online"]
[Date "2021.03.27"]
[Round "9.19"]
[White "Ince, Safiye Oyku"]
[Black "Durarbayli, Vasif"]
[Result "0-1"]
[ECO "C25"]
[WhiteElo "1995"]
[BlackElo "2606"]
[Annotator "ChessBase"]
[PlyCount "76"]
[EventDate "2021.03.27"]
[EventType "team-tourn"]
[EventCountry "NET"]
[SourceTitle "playchess.com"]
[Source "ChessBase"]
[SourceQuality "1"]
[TimeControl "900+5"]

1. e4 {[%emt 0:00:00]} e5 {[%emt 0:00:03]} 2. Nc3 {[%emt 0:00:04]} Nc6 {[%emt 0:00:02]} 3. g3 {[%emt 0:00:02]} g6 {[%emt 0:00:16]} 4. Bg2 {[%emt 0:00:03]} Bg7 {[%emt 0:00:01]} 5. Nge2 {[%emt 0:00:02]} d6 {[%emt 0:00:02]} 6. O-O {[%emt 0:00:04]} Be6 {[%emt 0:00:04]} 7. Nd5 {[%emt 0:00:05]} Qd7 {[%emt 0:00:04]} 8. c3 {[%emt 0:00:30]} h5 {[%emt 0:00:17]} 9. f4 {[%emt 0:01:42]} h4 {[%emt 0:00:17]} 10. f5 {[%emt 0:00:19]} gxf5 {[%emt 0:00:03]} 11. exf5 {[%emt 0:00:05]} Bxd5 {[%emt 0:00:06]} 12. Bxd5 {[%emt 0:00:07]} hxg3 {[%emt 0:00:03]} 13. Nxg3 {[%emt 0:00:07]} Nf6 {[%emt 0:00:04]} 14. Bg2 {[%emt 0:00:41]} O-O-O {[%emt 0:00:05]} 15. b4 {[%emt 0:00:04]} Rh4 {[%emt 0:00:22]} 16. b5 {[%emt 0:00:57]} Ne7 {[%emt 0:00:05]} 17. Qf3 {[%emt 0:00:37]} Qxb5 {[%emt 0:00:14]} 18. a4 {[%emt 0:00:45]} Qb6+ {[%emt 0:00:11]} 19. d4 {[%emt 0:00:37]} e4 {[%emt 0:00:02]} 20. Qe2 {[%emt 0:00:36]} Rdh8 {[%emt 0:00:10]} 21. h3 {[%emt 0:00:34]} Qc6 {[%emt 0:00:10]} 22. Bg5 {[%emt 0:00:29]} Rxh3 {[%emt 0:00:54]} 23. Bxh3 {[%emt 0:00:27]} Rxh3 {[%emt 0:00:04]} 24. Qg2 {[%emt 0:00:17]} Rh8 {[%emt 0:00:04]} 25. Rac1 {[%emt 0:03:13]} Rg8 {[%emt 0:00:15]} 26. Qh3 {[%emt 0:02:50]} Rh8 {[%emt 0:00:51]} 27. Qg2 {[%emt 0:00:02]} Rg8 {[%emt 0:00:02]} 28. Qh3 {[%emt 0:00:03]} Bh8 {[%emt 0:00:16]} 29. Qh4 {[%emt 0:00:36]} d5 {[%emt 0:00:04]} 30. Kg2 {[%emt 0:01:03]} Kd7 {[%emt 0:00:12]} 31. Rh1 {[%emt 0:00:05]} Bg7 {[%emt 0:00:07]} 32. Qf4 {[%emt 0:00:08]} Qxa4 {[%emt 0:00:13]} 33. c4 {[%emt 0:00:12]} dxc4 {[%emt 0:00:07]} 34. Qe5 {[%emt 0:00:12]} Qa2+ {[%emt 0:00:13]} 35. Kf1 {[%emt 0:00:03]} Nc6 {[%emt 0:02:05]} 36. Qc5 {[%emt 0:00:04]} Ng4 {[%emt 0:00:25]} 37. Qd5+ {[%emt 0:00:05]} Kc8 {[%emt 0:00:04]} 38. Ne2 {[%emt 0:00:03]} Nxd4 {[%emt 0:00:12]} 0-1

[Event "European Online Club-ch-E 2021"]
[Site "Online"]
[Date "2021.03.27"]
[Round "9.20"]
[White "Safarli, Eltaj"]
[Black "Anacoglu, Cisel"]
[Result "1-0"]
[ECO "C77"]
[WhiteElo "2598"]
[BlackElo "1924"]
[Annotator "ChessBase"]
[PlyCount "47"]
[EventDate "2021.03.27"]
[EventType "team-tourn"]
[EventCountry "NET"]
[SourceTitle "playchess.com"]
[Source "ChessBase"]
[SourceQuality "1"]
[TimeControl "900+5"]

1. e4 {[%emt 0:00:00]} e5 {[%emt 0:00:02]} 2. Nf3 {[%emt 0:00:02]} Nc6 {[%emt 0:00:03]} 3. Bb5 {[%emt 0:00:04]} a6 {[%emt 0:00:01]} 4. Ba4 {[%emt 0:00:01]} Nf6 {[%emt 0:00:01]} 5. Nc3 {[%emt 0:00:01]} b5 {[%emt 0:00:14]} 6. Bb3 {[%emt 0:00:03]} Be7 {[%emt 0:00:02]} 7. a4 {[%emt 0:00:01]} Rb8 {[%emt 0:00:25]} 8. axb5 {[%emt 0:00:02]} axb5 {[%emt 0:00:02]} 9. d3 {[%emt 0:00:01]} d6 {[%emt 0:00:02]} 10. Nd5 {[%emt 0:00:05]} Bg4 {[%emt 0:00:23]} 11. c3 {[%emt 0:00:03]} O-O {[%emt 0:00:25]} 12. h3 {[%emt 0:00:07]} Be6 {[%emt 0:00:06]} 13. Ra6 {[%emt 0:00:22]} Qd7 {[%emt 0:00:16]} 14. Rxc6 {[%emt 0:00:03]} Bxd5 {[%emt 0:01:37]} 15. exd5 {[%emt 0:00:03]} Ra8 {[%emt 0:00:19]} 16. O-O {[%emt 0:00:03]} Qc8 {[%emt 0:03:37]} 17. Qe2 {[%emt 0:00:04]} Nd7 {[%emt 0:00:06]} 18. d4 {[%emt 0:00:03]} Nb8 {[%emt 0:00:05]} 19. dxe5 {[%emt 0:00:02]} Nxc6 {[%emt 0:00:15]} 20. dxc6 {[%emt 0:00:01]} dxe5 {[%emt 0:00:24]} 21. Nxe5 {[%emt 0:00:01]} Bd6 {[%emt 0:00:02]} 22. Nd7 {[%emt 0:00:09]} Re8 {[%emt 0:00:20]} 23. Qf3 {[%emt 0:00:01]} Re7 {[%emt 0:00:15]} 24. Bg5 {[%emt 0:00:07]} 1-0